bitfinex-derivatives/quotes_ETHF0:USTF0_20210405
["timestamp","ask_amount","ask_price","bid_price","bid_amount"]
[1617650086342,2.90695,2105.1,2104.8,5.74]
[1617650086540,2.90695,2105.1,2105.0,5.78]
[1617650086941,2.90695,2105.1,2104.9,5.74]
[1617650087342,2.90695,2105.1,2105.0,5.74]
[1617650087542,2.90695,2105.1,2104.9,5.72]
[1617650087942,2.90695,2105.1,2105.0,5.75]
[1617650088142,2.90695,2105.1,2104.6,1.71]
[1617650088343,2.90695,2105.1,2104.4,2.571]
[1617650088543,2.90695,2105.1,2105.0,5.89]
[1617650088743,2.90695,2105.1,2104.6,5.71]
[1617650088943,2.90695,2105.1,2104.5,5.88]
[1617650088944,2.90695,2105.1,2104.4,2.571]
[1617650089143,2.90695,2105.1,2105.0,5.84]
[1617650089343,2.90695,2105.1,2104.7,5.74]
[1617650089543,2.90695,2104.8,2104.7,5.74]
[1617650089746,2.90695,2104.8,2104.4,2.571]
[1617650089747,5.09785,2104.8,2104.4,2.571]
[1617650089945,5.09785,2104.8,2104.7,5.72]
[1617650090346,5.09785,2104.8,2104.5,5.77]
[1617650090747,5.09785,2104.8,2104.7,5.7]
[1617650090946,5.09785,2104.8,2104.5,5.85]
[1617650091347,5.09785,2104.8,2104.7,5.91]
[1617650091548,5.09785,2104.8,2104.5,5.97]
[1617650091946,5.09785,2104.8,2104.7,5.72]
[1617650092350,5.09785,2104.8,2104.5,5.82]
[1617650092550,5.09785,2104.8,2104.7,5.87]
[1617650092949,5.09785,2104.8,2104.6,5.74]
[1617650093147,5.09785,2104.8,2104.7,5.76]
[1617650093449,5.09785,2104.8,2104.3,2.90695]
[1617650093648,5.09785,2104.8,2104.5,5.91]
[1617650093848,5.09785,2104.8,2104.4,5.96]
[1617650094049,5.09785,2104.8,2104.3,2.90695]
[1617650094250,5.09785,2104.8,2104.6,5.81]
[1617650094451,5.09785,2104.8,2104.4,5.8]
[1617650094754,5.09785,2104.8,2104.3,2.90695]
[1617650094954,5.09785,2104.8,2104.7,5.7]
[1617650095152,5.09785,2104.8,2104.4,5.83]
[1617650095453,2.90695,2104.5,2104.3,2.90695]
[1617650095854,2.90695,2104.5,2104.4,5.79]
[1617650097860,2.90695,2104.5,2104.4,6.7497]
[1617650098661,2.90695,2104.5,2104.4,5.79]
[1617650101065,0.05577186,2105.4,2104.5,76.2824]
[1617650101266,0.05577352,2105.3,2104.5,78.444]
[1617650101465,0.05577352,2105.3,2105.2,2.90695]
[1617650101665,0.05576925,2105.6,2105.2,4.77115]
[1617650101865,0.05576925,2105.6,2105.3,54.0614]
[1617650102065,12.96271241,2105.8,2105.3,54.0614]
[1617650102266,12.96271241,2105.8,2105.4,5.98]
[1617650103174,12.90695,2105.8,2105.4,5.98]
[1617650103569,12.90695,2105.8,2105.7,2.90695]
[1617650103968,12.90695,2105.8,2105.7,8.83695]
[1617650104969,69.76935,2105.8,2105.7,8.83695]
[1617650108876,66.8624,2105.8,2105.7,10.73245]
[1617650110678,66.8624,2105.8,2105.7,8.83695]
[1617650118588,10.0,2105.8,2105.7,8.83695]
[1617650119790,10.0,2105.8,2105.7,10.83695]
[1617650120389,10.0,2105.8,2105.7,11.79015]
[1617650121690,10.0,2105.8,2105.7,10.83695]
[1617650122793,10.0,2105.8,2105.7,75.40655]
[1617650123391,10.0,2105.8,2105.7,10.83695]
[1617650123992,9.1129,2105.8,2105.7,10.83695]
[1617650124191,8.6469,2105.8,2105.7,10.83695]
[1617650124592,6.9776,2105.8,2105.7,10.83695]
[1617650124993,5.6796,2105.8,2105.7,10.83695]
[1617650125192,4.9987,2105.8,2105.7,10.83695]
[1617650125992,4.6104,2105.8,2105.7,10.83695]
[1617650126194,3.9249,2105.8,2105.7,10.83695]
[1617650126592,0.0558698,2106.7,2105.7,10.83695]
[1617650126793,68.3972,2107.1,2106.3,65.2185]
[1617650126794,0.05586885,2106.8,2106.3,65.2185]
[1617650126992,0.05586885,2106.8,2106.4,2.0]
[1617650127192,0.05586885,2106.8,2106.4,7.74]
[1617650127995,0.05586885,2106.8,2106.7,2.90695]
[1617650128395,68.3972,2107.1,2106.7,8.87695]
[1617650129897,68.3972,2107.1,2107.0,2.90695]
[1617650130100,13.0,2107.3,2107.0,2.90695]
[1617650130297,13.0,2107.3,2107.0,70.83325]
[1617650131400,13.0,2107.3,2107.0,71.79175]
[1617650131600,13.0,2107.3,2107.0,70.83325]
[1617650132402,13.0,2107.3,2107.0,72.83325]
[1617650134205,13.0,2107.3,2107.0,76.03495]
[1617650134405,13.0,2107.3,2107.0,14.04865]
[1617650134806,13.0,2107.3,2107.0,13.09545]
[1617650135808,11.13,2107.3,2107.0,13.09545]
[1617650136206,10.2447,2107.3,2107.0,13.09545]
[1617650137006,8.7807,2107.3,2107.0,13.09545]
[1617650137406,8.131,2107.3,2107.0,13.09545]
[1617650137606,7.2536,2107.3,2107.0,13.09545]
[1617650139007,6.293,2107.3,2107.0,13.09545]
[1617650139207,6.0573,2107.3,2107.0,13.09545]
[1617650139406,5.1943,2107.3,2107.0,13.09545]
[1617650139808,58.0114,2108.3,2107.0,13.09545]
[1617650140007,2.90695,2109.1,2108.2,2.90695]
[1617650140207,2.90695,2109.1,2108.3,2.0]
[1617650140407,2.90695,2109.1,2108.5,75.2709]
[1617650140606,2.90695,2109.1,2108.6,2.0]
[1617650140808,0.05543254,2109.9,2108.6,3.32]
[1617650141210,0.05543056,2110.0,2108.6,3.32]
[1617650142109,0.05543056,2110.0,2109.5,2.90695]
[1617650142509,0.05543056,2110.0,2109.6,5.85]
[1617650142710,2.05542901,2110.1,2109.7,54.505]
[1617650143109,2.05542901,2110.1,2109.8,5.95]
[1617650143310,0.05542823,2110.0,2109.8,5.95]
[1617650143709,12.0,2109.9,2109.8,5.95]
[1617650144117,14.96238068,2109.9,2109.6,5.96]
[1617650144309,44.96238068,2109.9,2109.8,5.71]
[1617650144510,44.90695,2109.9,2109.7,5.74]
[1617650144711,47.32965,2109.9,2109.7,5.74]
[1617650144909,47.32965,2109.9,2108.3,2.0]
[1617650144910,47.32965,2109.9,2109.8,5.62]
[1617650145110,47.32965,2109.9,2108.4,1.47]
[1617650145111,49.32965,2109.9,2108.4,1.47]
[1617650145310,74.2899,2109.3,2108.2,56.8156]
[1617650145510,76.7016,2109.3,2108.3,5.93]
[1617650145710,76.7016,2109.3,2108.5,5.77]
[1617650146110,76.7016,2109.3,2108.4,2.90695]
[1617650146111,2.90695,2108.6,2108.4,2.90695]
[1617650146312,4.76195,2108.6,2108.4,2.90695]
[1617650146512,4.76195,2108.6,2108.5,1.55]
[1617650146911,4.76195,2108.6,2108.5,2.5018]
[1617650147212,4.76195,2108.6,2108.5,1.55]
[1617650148915,4.76195,2108.6,2108.4,2.90695]
[1617650149116,4.76195,2108.6,2108.5,5.93]
[1617650149316,30.0,2108.5,2106.9,63.9291]
[1617650149516,61.5712,2107.9,2106.9,63.9291]
[1617650149716,64.3247,2107.9,2107.0,5.91]
[1617650150115,2.7535,2107.9,2107.5,2.90695]
[1617650150317,2.7535,2107.9,2107.5,82.13005]
[1617650150518,2.7535,2107.9,2107.6,1.21]
[1617650150718,60.2234,2108.6,2107.6,1.21]
[1617650152321,60.2234,2108.6,2108.0,5.9]
[1617650152721,60.2234,2108.6,2107.6,5.69]
[1617650153122,60.2234,2108.6,2108.1,5.84]
[1617650153323,1.855,2108.6,2107.6,5.74]
[1617650153525,56.4252,2109.0,2107.9,71.5609]
[1617650153723,56.4252,2109.0,2108.2,5.88]
[1617650153922,86.4252,2109.0,2108.0,1.07]
[1617650154124,2.90695,2108.1,2108.0,1.07]
[1617650154323,5.27125,2108.1,2107.9,74.46785]
[1617650154729,5.27125,2108.1,2108.0,5.79]
[1617650155939,5.27125,2108.1,2106.3,79.9021]
[1617650155940,5.27125,2108.1,2107.1,5.8]
[1617650156128,79.88995,2107.2,2106.9,2.90695]
[1617650156330,82.46965,2107.2,2106.9,2.90695]
[1617650156532,82.46965,2107.2,2107.1,5.74]
[1617650156733,82.46965,2107.2,2106.9,2.90695]
[1617650157130,82.46965,2107.2,2107.1,5.77]
[1617650157330,82.46965,2107.2,2107.0,5.89]
[1617650157530,82.46965,2107.2,2106.9,2.90695]
[1617650157730,82.46965,2107.2,2107.1,5.75]
[1617650157930,82.46965,2107.2,2107.0,5.92]
[1617650158332,82.46965,2107.2,2107.1,5.83]
[1617650158530,82.46965,2107.2,2107.0,5.89]
[1617650158931,82.46965,2107.2,2107.1,5.7]
[1617650159133,82.46965,2107.2,2107.0,5.91]
[1617650159531,82.46965,2107.2,2107.1,5.88]
[1617650159732,82.46965,2107.2,2107.0,5.97]
[1617650160132,82.46965,2107.2,2107.1,5.77]
[1617650160332,82.46965,2107.2,2106.5,2.90695]
[1617650160532,82.46965,2107.2,2106.6,5.83]
[1617650160731,82.46965,2107.2,2107.1,5.86]
[1617650160933,82.46965,2107.2,2106.6,5.97]
[1617650161134,82.46965,2107.2,2106.7,5.75]
[1617650161334,5.48665,2107.2,2107.1,5.73]
[1617650161535,2.3643,2108.1,2106.5,2.90695]
[1617650161536,53.2018,2107.9,2106.7,5.92]
[1617650161935,53.2018,2107.9,2107.1,5.72]
[1617650162135,2.90695,2107.9,2107.6,2.90695]
[1617650162339,53.1768,2108.8,2107.6,2.90695]
[1617650162537,0.05534222,2108.9,2107.7,0.65]
[1617650162737,2.0,2109.0,2107.7,0.65]
[1617650162738,2.0,2109.0,2107.8,73.6555]
[1617650162937,2.0,2109.0,2107.8,75.4845]
[1617650163338,2.0,2109.0,2107.9,5.68]
[1617650164038,2.0,2109.0,2108.2,2.90695]
[1617650164238,67.1851,2109.1,2108.2,2.90695]
[1617650164438,67.1851,2109.1,2108.3,5.73]
[1617650166139,67.1851,2109.1,2108.7,2.90695]
[1617650166740,67.1851,2109.1,2108.8,5.89]
[1617650168041,97.1851,2109.1,2108.0,5.78]
[1617650168241,98.9376,2109.1,2108.0,5.78]
[1617650168441,30.0,2109.0,2108.9,5.85]
[1617650168641,30.0,2109.0,2108.1,5.89]
[1617650168841,60.4355,2108.4,2107.9,5.92]
[1617650169042,62.7447,2108.4,2107.0,57.5019]
[1617650169240,62.7447,2108.4,2108.2,5.78]
[1617650169442,62.7447,2108.4,2107.0,57.5019]
[1617650169842,62.7447,2108.4,2108.3,5.94]
[1617650170243,65.65165,2108.4,2107.6,2.90695]
[1617650170442,65.65165,2108.4,2108.3,5.73]
[1617650170644,65.65165,2108.4,2107.7,1.72]
[1617650171043,65.65165,2108.4,2108.3,5.92]
[1617650171444,65.65165,2108.4,2107.7,5.87]
[1617650172146,2.90695,2107.8,2107.7,5.87]
[1617650172346,5.67695,2107.8,2107.7,5.87]
[1617650172747,2.77,2107.8,2107.7,5.87]
[1617650173646,60.4355,2108.4,2107.7,5.87]
[1617650174247,60.4355,2108.4,2107.9,2.90695]
[1617650174448,61.3921,2108.4,2107.9,2.90695]
[1617650174647,60.4355,2108.4,2108.0,5.79]
[1617650176249,2.90695,2108.1,2108.0,5.79]
[1617650179455,63.228,2108.0,2107.1,5.71]
[1617650179656,65.6957,2108.0,2106.8,72.8542]
[1617650179857,65.6957,2108.0,2106.9,1.79]
[1617650180056,65.6957,2108.0,2107.2,5.73]
[1617650180259,2.90695,2107.3,2107.1,2.90695]
[1617650180458,4.99115,2107.3,2107.1,2.90695]
[1617650180657,4.99115,2107.3,2107.2,2.4]
[1617650181260,4.99115,2107.3,2106.8,67.0442]
[1617650181261,4.99115,2107.3,2107.0,5.8]
[1617650181459,4.99115,2107.3,2107.2,5.98]
[1617650181860,4.99115,2107.3,2107.1,5.74]
[1617650182058,4.99115,2107.3,2106.9,5.76]
[1617650182059,4.99115,2107.3,2107.2,5.71]
[1617650182459,4.99115,2107.3,2107.0,8.79695]
[1617650182659,4.99115,2107.3,2107.2,5.95]
[1617650183062,4.99115,2107.3,2107.0,2.90695]
[1617650183360,4.99115,2107.3,2107.1,5.81]
[1617650183562,4.99115,2107.3,2107.2,5.73]
[1617650183760,4.99115,2107.3,2107.0,2.90695]
[1617650183960,4.99115,2107.3,2107.1,5.73]
[1617650184160,4.99115,2107.3,2107.2,5.82]
[1617650184361,4.99115,2107.3,2107.0,2.90695]
[1617650184761,4.99115,2107.3,2107.2,5.8]
[1617650185162,68.3398,2107.2,2107.0,2.90695]
[1617650185364,68.3398,2107.2,2107.1,5.79]
[1617650185564,68.3398,2107.2,2107.0,2.90695]
[1617650185762,68.3398,2107.2,2107.1,5.88]
[1617650186367,4.99115,2107.3,2107.1,5.88]
[1617650186564,4.99115,2107.3,2106.4,5.93]
[1617650186766,2.0,2107.2,2106.4,5.93]
[1617650186965,72.1938,2106.6,2105.8,5.86]
[1617650187167,74.0743,2106.6,2106.5,5.91]
[1617650187366,74.0743,2106.6,2106.5,8.481]
[1617650187565,74.0743,2106.6,2106.5,2.571]
[1617650187765,74.0743,2106.6,2106.5,8.261]
[1617650188265,76.98125,2106.6,2106.5,11.16795]
[1617650188465,76.98125,2106.6,2106.5,8.59695]
[1617650191467,76.98125,2106.6,2106.5,5.69]
[1617650192067,76.98125,2106.6,2105.8,5.84]
[1617650192270,74.0743,2106.6,2106.5,5.84]
[1617650192669,74.0743,2106.6,2105.9,5.93]
[1617650193071,31.8805,2106.6,2105.9,5.93]
[1617650194275,2.90695,2106.0,2105.9,5.93]
[1617650194474,5.50985,2106.0,2105.9,5.93]
[1617650195074,5.50985,2106.0,2105.7,2.571]
[1617650195276,5.50985,2106.0,2105.9,5.94]
[1617650195474,35.50985,2106.0,2105.9,5.94]
[1617650195676,35.50985,2106.0,2105.7,2.571]
[1617650195874,35.50985,2106.0,2105.8,5.98]
[1617650196075,98.5085,2105.9,2105.8,4.5248]
[1617650196274,98.5085,2105.9,2105.7,2.571]
[1617650196475,98.5085,2105.9,2105.8,5.96]
[1617650196675,98.5085,2105.9,2105.0,1.0]
[1617650196875,98.5085,2105.9,2105.1,5.73]
[1617650197076,98.5085,2105.9,2105.8,5.96]
[1617650197276,98.5085,2105.9,2105.0,1.0]
[1617650197476,98.5085,2105.9,2105.2,5.71]
[1617650197676,98.5085,2105.9,2105.8,5.88]
[1617650197876,98.5085,2105.9,2105.1,5.77]
[1617650198076,98.5085,2105.9,2105.3,5.91]
[1617650198279,98.5085,2105.9,2105.8,5.9]
[1617650198478,98.5085,2105.9,2105.1,5.79]
[1617650198778,98.5085,2105.9,2105.8,5.84]
[1617650199177,98.5085,2105.9,2105.1,5.76]
[1617650199387,98.5085,2105.9,2105.8,5.89]
[1617650199583,68.5085,2105.9,2105.8,5.89]
[1617650199784,61.4692,2105.9,2105.1,82.7806]
[1617650199985,61.4692,2105.9,2105.6,5.77]
[1617650200192,61.4692,2105.9,2105.1,82.7306]
[1617650200396,61.4692,2105.9,2105.8,2.90695]
[1617650200791,61.4692,2105.9,2105.8,6.65695]
[1617650201391,61.4692,2105.9,2105.8,9.22795]
[1617650202480,61.4692,2105.9,2105.8,6.65695]
[1617650203684,61.4692,2105.9,2105.8,3.75]
[1617650203885,2.90695,2106.1,2105.8,3.75]
[1617650204085,2.90695,2106.1,2105.2,5.85]
[1617650204286,2.90695,2105.3,2105.2,5.85]
[1617650204486,5.52795,2105.3,2105.1,5.47795]
[1617650204690,5.52795,2105.3,2105.2,5.9]
[1617650207991,2.52795,2105.3,2105.2,5.9]
[1617650208391,5.4349,2105.3,2105.2,5.9]
[1617650209992,2.90695,2105.3,2105.2,5.9]
[1617650211397,74.9651,2105.4,2105.2,5.9]
[1617650212400,74.9651,2105.4,2105.3,2.90695]
[1617650212798,74.9651,2105.4,2105.3,8.78695]
[1617650214199,4.21305,2105.3,2105.1,2.571]
[1617650214400,4.21305,2105.3,2105.2,8.78695]
[1617650218507,7.12,2105.3,2105.2,8.78695]
[1617650222010,7.12,2105.3,2105.2,5.88]
[1617650223216,9.12,2105.3,2105.2,5.88]
[1617650223412,41.3514,2105.3,2105.2,5.88]
[1617650223815,41.3514,2105.3,2105.1,5.7]
[1617650224216,41.3514,2105.3,2105.2,5.96]
[1617650224414,60.6947,2105.2,2105.1,5.78]
[1617650224615,92.6947,2105.2,2105.1,5.78]
[1617650224813,92.6947,2105.2,2105.0,1.0]
[1617650225014,92.6947,2105.2,2105.1,5.79]
[1617650225213,92.6947,2105.2,2105.1,2.7903]
[1617650225415,92.6947,2105.2,2105.1,1.7904]
[1617650225613,32.0,2105.2,2105.1,1.7904]
[1617650228917,30.0,2105.2,2105.1,1.7904]
[1617650229717,69.6975,2105.2,2105.1,1.7904]
[1617650230323,7.12,2105.3,2105.1,1.7904]
[1617650238129,65.7722,2105.2,2105.1,1.7904]
[1617650240028,66.7248,2105.2,2105.1,1.7904]
[1617650240428,65.7722,2105.2,2105.1,1.7904]
[1617650240830,67.9667,2105.2,2105.1,1.7904]
[1617650242729,65.7722,2105.2,2105.1,1.7904]
[1617650251440,95.7722,2105.2,2105.1,1.7904]
[1617650253241,65.7722,2105.2,2105.1,1.7904]
[1617650273974,68.2794,2105.2,2105.1,1.7904]
[1617650274276,2.5072,2105.2,2105.1,1.7904]
[1617650277076,2.5629475,2105.2,2105.1,1.7904]
[1617650278880,2.5072,2105.2,2105.1,1.7904]
[1617650279078,2.6676,2105.2,2105.1,1.7904]
[1617650279279,3.11369178,2105.2,2105.1,1.7904]
[1617650280180,2.6676,2105.2,2105.1,1.7904]
[1617650280580,7.56608496,2105.3,2105.1,1.7904]
[1617650280980,74.11088496,2105.3,2105.1,1.7904]
[1617650281180,74.11088496,2105.3,2105.1,3.7107]
[1617650281381,73.6648,2105.3,2105.1,3.7107]
[1617650281783,0.02787584,2105.2,2105.1,3.7107]
[1617650282184,7.1478757,2105.3,2105.1,1.7904]
[1617650282384,0.44697695,2105.2,2105.1,1.7904]
[1617650283586,10.01608688,2105.3,2105.1,1.7904]
[1617650284187,7.79048688,2105.3,2105.1,1.7904]
[1617650286389,0.67052462,2105.2,2105.1,1.7904]
[1617650286989,7.79049811,2105.3,2105.1,1.7904]
[1617650287191,7.79049811,2105.3,2105.2,2.90695]
[1617650287390,7.12,2105.3,2105.2,2.90695]
[1617650287789,7.12,2105.3,2105.2,8.72695]
[1617650288589,4.21305,2105.3,2105.2,8.72695]
[1617650288789,4.21305,2105.3,2105.2,11.56695]
[1617650291595,4.21305,2105.3,2105.2,8.72695]
[1617650297711,4.21305,2105.3,2105.2,5.82]
[1617650298114,4.21305,2105.3,2105.1,5.78]
[1617650298513,4.21305,2105.3,2105.2,5.79]
[1617650298712,4.21305,2105.3,2105.0,1.0]
[1617650298713,4.6604721,2105.3,2105.1,5.75]
[1617650299114,4.6604721,2105.3,2105.2,5.86]
[1617650299313,4.6604721,2105.3,2105.1,5.88]
[1617650299715,4.6604721,2105.3,2105.2,5.92]
[1617650299913,4.6604721,2105.3,2105.1,5.98]
[1617650300115,61.7996,2105.2,2105.1,5.98]
[1617650300313,61.7996,2105.2,2105.0,1.0]
[1617650300515,62.24702577,2105.2,2105.1,5.78]
[1617650301916,61.7996,2105.2,2105.1,5.78]
[1617650302316,62.24703489,2105.2,2105.1,5.78]
[1617650302517,61.7996,2105.2,2105.1,5.78]
[1617650304621,62.47174527,2105.2,2105.1,5.78]
[1617650307321,62.47174527,2105.2,2105.1,8.68695]
[1617650308626,61.7996,2105.2,2105.1,8.68695]
[1617650312730,62.47165433,2105.2,2105.1,8.68695]
[1617650313531,61.7996,2105.2,2105.1,8.68695]
[1617650315133,62.47165375,2105.2,2105.1,8.68695]
[1617650315532,61.7996,2105.2,2105.1,8.68695]
[1617650317034,61.7996,2105.2,2105.1,5.78]
[1617650317634,62.47160539,2105.2,2105.1,5.78]
[1617650317834,65.21880539,2105.2,2105.1,5.78]
[1617650321442,64.5468,2105.2,2105.1,5.78]
[1617650322843,61.7996,2105.2,2105.1,5.78]
[1617650323844,62.47166493,2105.2,2105.1,5.78]
[1617650324446,61.7996,2105.2,2105.1,5.78]
[1617650325645,4.88500924,2105.3,2105.1,5.78]
[1617650326046,4.21305,2105.3,2105.1,5.78]
[1617650326447,0.44795158,2105.2,2105.1,5.78]
[1617650327048,6.75688727,2105.3,2105.1,5.78]
[1617650327650,6.75688727,2105.3,2105.2,56.1414]
[1617650327849,6.75688727,2105.3,2105.2,61.9614]
[1617650328051,6.75688727,2105.3,2105.2,5.82]
[1617650328451,6.75688727,2105.3,2105.1,5.82]
[1617650328650,6.75688727,2105.3,2105.2,5.79]
[1617650329050,6.75688727,2105.3,2105.1,5.88]
[1617650329250,4.88498727,2105.3,2105.1,5.88]
[1617650329450,4.88498727,2105.3,2105.2,5.79]
[1617650329652,4.88498727,2105.3,2105.1,5.73]
[1617650330051,4.88498727,2105.3,2105.2,5.77]
[1617650330251,4.88498727,2105.3,2105.1,5.79]
[1617650330651,4.88498727,2105.3,2105.2,5.7]
[1617650330851,4.88498727,2105.3,2105.1,5.86]
[1617650331151,4.88498727,2105.3,2105.2,5.86]
[1617650331454,4.88498727,2105.3,2105.1,5.75]
[1617650331654,4.88498727,2105.3,2105.1,7.75]
[1617650331852,4.88498727,2105.3,2105.2,5.91]
[1617650332052,4.88498727,2105.3,2105.1,2.0]
[1617650332453,4.88498727,2105.3,2105.2,5.81]
[1617650334154,4.21305,2105.3,2105.2,5.81]
[1617650337567,4.88487979,2105.3,2105.2,5.81]
[1617650338967,7.25697979,2105.3,2105.2,5.81]
[1617650339765,7.25697979,2105.3,2105.1,5.7]
[1617650339965,69.331,2105.2,2105.1,5.7]
[1617650340165,69.331,2105.2,2105.0,3.90695]
[1617650340366,70.6195326,2105.2,2105.0,3.90695]
[1617650340565,70.00284621,2105.2,2105.1,5.77]
[1617650340768,0.67184621,2105.2,2105.1,5.77]
[1617650340968,7.48094049,2105.3,2105.1,5.77]
[1617650341768,0.89583464,2105.2,2105.1,5.77]
[1617650349075,8.54815596,2105.3,2105.1,5.77]
[1617650349476,9.3883204,2105.3,2105.1,5.77]
[1617650351078,1.96299098,2105.2,2105.1,5.77]
[1617650352078,6.1759667,2105.3,2105.1,5.77]
[1617650353181,1.96296214,2105.2,2105.1,5.77]
[1617650353381,4.03146214,2105.2,2105.1,5.77]
[1617650354383,1.96296214,2105.2,2105.1,5.77]
[1617650355385,4.21305,2105.3,2105.1,5.77]
[1617650355386,6.1759247,2105.3,2105.1,5.77]
[1617650355587,1.12003202,2105.2,2105.1,5.77]
[1617650357185,5.33290316,2105.3,2105.1,5.77]
[1617650360093,1.11956867,2105.2,2105.1,5.77]
[1617650361593,6.17524285,2105.3,2105.1,5.77]
[1617650361993,1.96222323,2105.2,2105.1,5.77]
[1617650364596,7.01528027,2105.3,2105.1,5.77]
[1617650364996,4.21305,2105.3,2105.1,5.77]
[1617650365196,7.01534529,2105.3,2105.1,5.77]
[1617650365597,1.96237224,2105.2,2105.1,5.77]
[1617650365998,4.21305,2105.3,2105.1,5.77]
[1617650365999,6.17536741,2105.3,2105.1,5.77]
[1617650366397,5.3326895,2105.3,2105.1,5.77]
[1617650366998,0.89564454,2105.2,2105.1,5.77]
[1617650367797,0.89564454,2105.2,2105.1,8.67695]
[1617650368599,0.89564454,2105.2,2105.1,5.77]
[1617650372007,4.21305,2105.3,2105.1,5.77]
[1617650372408,0.89551824,2105.2,2105.1,5.77]
[1617650374609,5.10849141,2105.3,2105.1,5.77]
[1617650374809,0.67156638,2105.2,2105.1,8.3751]
[1617650375812,0.67156638,2105.2,2105.1,11.28205]
[1617650376413,4.88460305,2105.3,2105.1,11.28205]
[1617650377916,4.88460305,2105.3,2105.1,8.67695]
[1617650378319,0.67152122,2105.2,2105.1,8.67695]
[1617650378718,4.21305,2105.3,2105.1,8.67695]
[1617650378919,5.10845856,2105.3,2105.1,8.67695]
[1617650383423,68.9911,2105.2,2105.1,8.67695]
[1617650385625,69.66273624,2105.2,2105.1,8.67695]
[1617650385924,68.9911,2105.2,2105.1,8.67695]
[1617650386525,71.8319,2105.2,2105.1,8.67695]
[1617650387227,72.7274815,2105.2,2105.1,8.67695]
[1617650387829,72.7274815,2105.2,2105.1,5.77]
[1617650388428,71.8319,2105.2,2105.1,5.77]
[1617650389133,72.95162588,2105.2,2105.1,5.77]
[1617650389735,3.96052588,2105.2,2105.1,5.77]
[1617650389935,2.8408,2105.2,2105.1,5.77]
[1617650390734,4.80326226,2105.2,2105.1,5.77]
[1617650392138,3.95977427,2105.2,2105.1,5.77]
[1617650392537,2.8408,2105.2,2105.1,5.77]
[1617650392738,1.1189713,2105.2,2105.1,5.77]
[1617650392940,3.3414713,2105.2,2105.1,5.77]
[1617650394340,2.2225,2105.2,2105.1,5.77]
[1617650397949,6.17405573,2105.3,2105.1,5.77]
[1617650401651,6.17405573,2105.3,2105.2,0.37517477]
[1617650402051,36.17405573,2105.3,2105.2,1.29]
[1617650402253,34.21305,2105.3,2105.2,1.29]
[1617650402451,57.7503,2105.2,2104.1,2.571]
[1617650402652,60.3613,2105.2,2104.3,5.78]
[1617650402850,62.3613,2105.2,2104.3,5.78]
[1617650403053,0.44722428,2104.4,2104.2,5.7]
[1617650403253,3.07722428,2104.4,2104.1,2.571]
[1617650403652,3.07722428,2104.4,2104.3,5.95]
[1617650403852,3.07722428,2104.4,2104.2,5.98]
[1617650404052,2.90695,2104.3,2104.1,2.571]
[1617650404252,2.90695,2104.3,2104.2,5.95]
[1617650409560,3.35421063,2104.3,2104.2,5.95]
[1617650409860,3.35421063,2104.3,2103.9,5.76]
[1617650410061,2.90695,2104.0,2103.9,5.76]
[1617650410262,2.90695,2104.0,2103.5,2.90695]
[1617650410664,0.02795534,2103.7,2103.5,8.67695]
[1617650412064,2.90695,2103.6,2103.5,8.67695]
[1617650412264,2.93490632,2103.6,2103.5,8.67695]
[1617650413466,2.93490632,2103.6,2103.5,5.77]
[1617650413467,2.90695,2103.6,2103.5,5.77]
[1617650416768,2.93487493,2103.6,2103.5,5.77]
[1617650416966,2.90695,2103.6,2103.5,5.77]
[1617650419075,2.96280162,2103.6,2103.5,5.77]
[1617650419866,3.90250162,2103.6,2103.5,5.77]
[1617650420970,72.73110162,2103.6,2103.5,5.77]
[1617650422770,71.79140162,2103.6,2103.5,5.77]
[1617650423574,73.95388825,2103.6,2103.5,5.77]
[1617650423975,73.92595,2103.6,2103.5,5.77]
[1617650424175,73.98182673,2103.6,2103.5,5.77]
[1617650424579,73.92595,2103.6,2103.5,5.77]
[1617650424980,73.95385685,2103.6,2103.5,5.77]
[1617650429680,73.92595,2103.6,2103.5,5.77]
[1617650430180,73.98176672,2103.6,2103.5,5.77]
[1617650432987,71.79136672,2103.6,2103.5,5.77]
[1617650434490,71.73555,2103.6,2103.5,5.77]
[1617650434890,71.79136904,2103.6,2103.5,5.77]
[1617650436093,71.7634321,2103.6,2103.5,5.77]
[1617650441298,71.7634321,2103.6,2103.0,5.71]
[1617650441498,71.7634321,2103.6,2103.5,5.96]
[1617650441900,71.7634321,2103.6,2103.0,5.7]
[1617650442101,71.7634321,2103.6,2103.5,5.81]
[1617650442499,2.90695,2103.6,2103.4,3.90695]
[1617650442700,2.90695,2103.6,2103.5,5.78]
[1617650443500,2.90695,2103.6,2103.5,77.4602]
[1617650444201,2.90695,2103.6,2103.5,79.4602]
[1617650446904,3.84985,2103.6,2103.5,79.4602]
[1617650447306,3.84985,2103.6,2103.5,7.78]
[1617650447706,2.90695,2103.6,2103.5,7.78]
[1617650448307,2.90695,2103.6,2103.5,5.78]
[1617650448908,5.59015,2103.6,2103.5,5.78]